bitfinex-derivatives/quotes_BTCF0:USTF0_20250429
["timestamp","ask_amount","ask_price","bid_price","bid_amount"]
[1745946289470,0.2107643,94871.0,94870.0,0.2107606]
[1745946290767,0.0526889,94873.0,94869.0,0.1542]
[1745946290768,0.210762,94870.0,94869.0,0.1542]
[1745946290972,0.501062,94870.0,94869.0,0.1542]
[1745946291166,0.2634682,94866.0,94865.0,0.2107732]
[1745946292369,0.2107754,94866.0,94865.0,0.2127732]
[1745946292776,0.2107754,94866.0,94865.0,0.2107732]
[1745946292973,0.2107672,94868.0,94867.0,0.2107665]
[1745946294480,0.59229572,94875.0,94865.0,0.001]
[1745946294778,0.2107643,94870.0,94869.0,0.2107556]
[1745946295578,0.2107643,94870.0,94861.0,0.4134953]
[1745946295579,0.2107665,94868.0,94861.0,0.3608]
[1745946295782,0.2107887,94858.0,94834.0,0.07644]
[1745946295988,0.2107887,94858.0,94842.0,0.2108243]
[1745946296169,0.2107887,94858.0,94838.0,0.3608]
[1745946296577,0.5007887,94858.0,94838.0,0.413508]
[1745946296792,0.5007887,94858.0,94842.0,0.2635288]
[1745946296981,0.5007887,94858.0,94840.0,0.0527071]
[1745946297282,0.5007887,94858.0,94857.0,0.04062265]
[1745946297471,0.8615887,94858.0,94857.0,0.04062265]
[1745946299172,0.8615887,94858.0,94857.0,0.03962265]
[1745946305692,0.0526965,94860.0,94857.0,0.03962265]
[1745946305693,0.5715729,94866.0,94857.0,0.03962265]
[1745946305891,0.0526884,94874.0,94857.0,0.03962265]
[1745946305892,0.10694461,94875.0,94865.0,0.4134931]
[1745946306192,0.2107687,94867.0,94866.0,0.1427]
[1745946306686,0.2107687,94867.0,94866.0,0.3534709]
[1745946307483,0.2127687,94867.0,94866.0,0.3534709]
[1745946308990,0.2137687,94867.0,94866.0,0.3534709]
[1745946311495,0.003,94867.0,94866.0,0.3534709]
[1745946311697,0.003,94867.0,94866.0,0.7142709]
[1745946313696,0.001,94867.0,94866.0,0.7152709]
[1745946314809,0.2107605,94871.0,94870.0,0.210762]
[1745946315995,0.2107605,94871.0,94870.0,0.211762]
[1745946318602,0.2107605,94871.0,94870.0,0.001]
[1745946320222,0.2107887,94858.0,94854.0,0.2107967]
[1745946320521,0.2107887,94858.0,94854.0,0.1489]
[1745946320704,0.2107887,94858.0,94854.0,0.359697]
[1745946320912,0.2107887,94858.0,94854.0,0.3596973]
[1745946321105,0.3608,94863.0,94854.0,0.1489]
[1745946321305,0.2634764,94862.0,94861.0,0.210782]
[1745946321713,0.2107811,94862.0,94861.0,0.210782]
[1745946321908,0.2107811,94862.0,94861.0,0.353082]
[1745946322109,0.2107811,94862.0,94861.0,0.1423]
[1745946322713,0.2107811,94862.0,94861.0,0.1433]
[1745946322914,0.4985811,94862.0,94861.0,0.1443]
[1745946323311,0.4985811,94862.0,94861.0,0.1433]
[1745946324915,0.4985811,94862.0,94861.0,0.1423]
[1745946325910,0.4995811,94862.0,94861.0,0.1423]
[1745946326605,0.5005811,94862.0,94861.0,0.1423]
[1745946327306,0.2127798,94862.0,94861.0,0.353082]
[1745946331018,0.2127798,94862.0,94861.0,0.353082]
[1745946331410,0.2127798,94862.0,94861.0,0.1423]
[1745946332608,0.3548798,94862.0,94861.0,0.1423]
[1745946334414,0.3548798,94862.0,94861.0,0.2776]
[1745946336024,0.3548798,94862.0,94861.0,0.488382]
[1745946336218,0.2107887,94858.0,94857.0,0.03962265]
[1745946337113,0.4953887,94858.0,94857.0,0.03962265]
[1745946338618,0.4953887,94858.0,94857.0,0.25041355]
[1745946338911,0.4953887,94858.0,94857.0,0.17762265]
[1745946342913,0.4953887,94858.0,94857.0,0.31202265]
[1745946343326,0.4953887,94858.0,94857.0,0.52281355]
[1745946347522,0.3520887,94858.0,94857.0,0.52281355]
[1745946347914,0.3520887,94858.0,94857.0,0.31202265]
[1745946348317,0.4859887,94858.0,94857.0,0.31202265]
[1745946348719,0.4859887,94858.0,94857.0,0.52281355]
[1745946348919,0.4859887,94858.0,94857.0,0.31202265]
[1745946350917,0.4859887,94858.0,94857.0,0.52281355]
[1745946351122,0.4859887,94858.0,94857.0,0.31202265]
[1745946352922,0.4859887,94858.0,94857.0,0.31402265]
[1745946353837,0.0526734,94901.0,94881.0,0.2107376]
[1745946354127,0.25431458,94900.0,94881.0,0.6467776]
[1745946354334,0.15431458,94891.0,94881.0,0.3608]
[1745946354627,0.15431458,94891.0,94881.0,0.5715376]
[1745946354831,0.2107183,94890.0,94881.0,0.5715376]
[1745946355027,0.13516035,94882.0,94881.0,0.5715376]
[1745946355829,0.13516035,94882.0,94881.0,0.3608]
[1745946356133,0.13716035,94882.0,94881.0,0.5715376]
[1745946356334,0.13716035,94882.0,94881.0,0.3608]
[1745946356635,0.34589575,94882.0,94881.0,0.3608]
[1745946356829,0.34789575,94882.0,94881.0,0.3608]
[1745946357023,0.34589575,94882.0,94881.0,0.3608]
[1745946357223,0.34789575,94882.0,94881.0,0.3608]
[1745946358634,0.34789575,94882.0,94881.0,0.5715376]
[1745946359832,0.34589575,94882.0,94881.0,0.5715376]
[1745946360022,0.2147354,94882.0,94881.0,0.5715376]
[1745946360227,0.2147354,94882.0,94879.0,0.0526851]
[1745946360228,0.210782,94861.0,94857.0,0.07119818]
[1745946360424,0.210782,94861.0,94857.0,0.03962265]
[1745946360625,0.0526976,94858.0,94855.0,0.3608]
[1745946360931,0.210822,94843.0,94838.0,0.3608]
[1745946361335,0.210822,94843.0,94838.0,0.571632]
[1745946361533,0.210822,94843.0,94838.0,0.3608]
[1745946361729,0.452022,94843.0,94834.0,0.0527104]
[1745946361932,0.452022,94843.0,94830.0,0.0527123]
[1745946361933,0.452022,94843.0,94842.0,0.22193265]
[1745946362133,0.452022,94843.0,94842.0,0.43575695]
[1745946362335,0.452022,94843.0,94842.0,0.22493265]
[1745946363543,0.452022,94843.0,94842.0,0.22893265]
[1745946363842,0.452022,94843.0,94842.0,0.01473399]
[1745946366443,0.2108376,94836.0,94835.0,0.00105446]
[1745946367245,0.2108532,94829.0,94822.0,0.1383]
[1745946367436,0.0527121,94831.0,94819.0,0.3608]
[1745946367636,0.2108732,94820.0,94819.0,0.3608]
[1745946367840,0.2108732,94820.0,94819.0,0.36880278]
[1745946368444,0.2108732,94820.0,94819.0,0.37180278]
[1745946368445,0.4566732,94820.0,94819.0,0.37180278]
[1745946368645,0.4566732,94820.0,94819.0,0.01100278]
[1745946369440,0.2108776,94818.0,94817.0,0.00158199]
[1745946370245,0.2108776,94818.0,94817.0,0.21246189]
[1745946370640,0.1312,94820.0,94819.0,0.2108754]
[1745946370945,0.1103,94826.0,94825.0,0.2108621]
[1745946371140,0.1318,94839.0,94837.0,0.2108332]
[1745946371442,0.3211332,94838.0,94837.0,0.2108332]
[1745946371648,0.3211332,94838.0,94837.0,0.5716332]
[1745946372240,0.4671031,94848.0,94845.0,0.2635172]
[1745946372440,0.2108201,94846.0,94845.0,0.5716132]
[1745946372836,0.2108201,94846.0,94845.0,0.3608]
[1745946373632,0.2118201,94846.0,94845.0,0.3608]
[1745946373837,0.001,94846.0,94845.0,0.3608]
[1745946374042,0.2118154,94846.0,94845.0,0.5716176]
[1745946374234,0.003,94846.0,94845.0,0.5716176]
[1745946375131,0.2138154,94846.0,94845.0,0.5716176]
[1745946375331,0.2108154,94846.0,94845.0,0.3618]
[1745946375556,0.2128154,94846.0,94845.0,0.3618]
[1745946376042,0.2492,94846.0,94845.0,0.5716176]
[1745946376244,0.2492,94846.0,94845.0,0.5726176]
[1745946376245,0.002,94846.0,94845.0,0.5726176]
[1745946376945,0.1322,94852.0,94845.0,0.5726176]
[1745946376946,0.115,94853.0,94852.0,0.210802]
[1745946377140,0.4144,94862.0,94857.0,0.0526973]
[1745946377442,0.15581458,94870.0,94865.0,0.2107732]
[1745946377443,0.0015,94870.0,94865.0,0.2107732]
[1745946377642,0.0015,94870.0,94865.0,0.5715732]
[1745946377837,0.2107658,94869.0,94865.0,0.67698519]
[1745946378032,0.1158,94868.0,94865.0,1.00402519]
[1745946378433,0.0015,94870.0,94865.0,1.00402519]
[1745946378747,0.004,94866.0,94865.0,1.00402519]
[1745946379536,0.004,94866.0,94850.0,0.28661458]
[1745946379537,0.359412,94866.0,94851.0,0.3608]
[1745946379738,0.359412,94866.0,94763.0,0.4114]
[1745946379739,0.2108687,94822.0,94800.0,0.1835291]
[1745946379943,0.5716687,94822.0,94818.0,0.1129]
[1745946380247,0.5716687,94822.0,94800.0,0.1308]
[1745946380248,0.0527181,94821.0,94800.0,0.1308]
[1745946380441,0.5716776,94818.0,94806.0,0.1129]
[1745946380643,0.5716776,94818.0,94817.0,2e-08]
[1745946380841,0.3608,94818.0,94806.0,0.1129]
[1745946381038,0.2108999,94808.0,94807.0,0.1288]
[1745946381244,0.5716999,94808.0,94807.0,0.1288]
[1745946382447,0.5716999,94808.0,94807.0,0.1367984]
[1745946382951,0.5726999,94808.0,94807.0,0.1417984]
[1745946384045,0.5726999,94808.0,94807.0,0.1457984]
[1745946386247,0.3618,94808.0,94807.0,0.3567005]
[1745946386446,0.5726999,94808.0,94807.0,0.3567005]
[1745946386648,0.5726999,94808.0,94807.0,0.1457984]
[1745946386953,0.5726999,94808.0,94807.0,0.3567005]
[1745946387457,0.5726999,94808.0,94807.0,0.1457984]
[1745946387952,0.5726999,94808.0,94807.0,0.3567005]
[1745946388146,0.5726999,94808.0,94807.0,0.4343005]
[1745946389050,0.3618,94808.0,94807.0,0.4343005]
[1745946389841,0.5726999,94808.0,94807.0,0.4343005]
[1745946391854,0.5726999,94808.0,94807.0,0.2233984]
[1745946392757,0.5726999,94808.0,94807.0,0.4343005]
[1745946393657,0.5726999,94808.0,94807.0,0.2233984]
[1745946396749,0.0527303,94799.0,94786.0,0.03271281]
[1745946396955,0.2109444,94788.0,94787.0,0.0785]
[1745946397156,0.5717444,94788.0,94787.0,0.08634528]
[1745946398053,0.5717444,94788.0,94787.0,0.29729188]
[1745946398457,0.5717444,94788.0,94787.0,0.37889188]
[1745946398652,0.5727444,94788.0,94787.0,0.37889188]
[1745946398857,0.3628,94788.0,94787.0,0.38389188]
[1745946399151,0.3628,94788.0,94787.0,0.48939188]
[1745946400562,0.3638,94788.0,94787.0,0.49239188]
[1745946402464,0.4925263,94806.0,94805.0,0.2109065]
[1745946402465,0.5717065,94806.0,94805.0,0.2109065]
[1745946402771,0.210911,94804.0,94803.0,0.2109097]
[1745946402959,0.210911,94804.0,94803.0,0.3681097]
[1745946404168,0.210911,94804.0,94803.0,0.3691097]
[1745946405668,0.211911,94804.0,94803.0,0.3721097]
[1745946406960,0.211911,94804.0,94803.0,0.0822]
[1745946407155,0.2109332,94793.0,94792.0,0.1456]
[1745946407559,0.2109332,94793.0,94792.0,0.3565355]
[1745946408254,0.2129332,94793.0,94792.0,0.3665355]
[1745946408968,0.002,94793.0,94792.0,0.3665355]
[1745946409958,0.002,94793.0,94792.0,0.4720275]
[1745946411068,0.002,94793.0,94792.0,0.3665355]
[1745946412475,0.2129332,94793.0,94792.0,0.3665355]
[1745946412666,0.002,94793.0,94792.0,0.3665355]
[1745946412868,0.2129332,94793.0,94792.0,0.3665355]
[1745946413465,0.2129332,94793.0,94792.0,0.38217585]
[1745946413661,0.2865332,94793.0,94792.0,0.09874035]
[1745946414068,0.3658332,94793.0,94792.0,0.30967585]
[1745946414265,0.3658332,94793.0,94792.0,0.09874035]
[1745946414672,0.3658332,94793.0,94792.0,0.30967585]
[1745946414969,0.3658332,94793.0,94792.0,0.09874035]
[1745946415672,0.3658332,94793.0,94792.0,0.02564035]
[1745946415861,0.7266332,94793.0,94792.0,0.02564035]
[1745946417470,0.7266332,94793.0,94792.0,0.01]
[1745946417865,0.7256332,94793.0,94792.0,0.005]
[1745946418061,0.7266332,94793.0,94792.0,0.007]
[1745946418473,0.7266332,94793.0,94792.0,0.02274924]
[1745946418870,0.7266332,94793.0,94792.0,0.02074924]
[1745946419472,0.7256332,94793.0,94792.0,0.01774924]
[1745946419666,0.7256332,94793.0,94792.0,0.01974924]
[1745946420175,0.3648332,94793.0,94792.0,0.23068474]
[1745946420474,0.3648332,94793.0,94792.0,0.004]
[1745946420872,0.3648332,94793.0,94792.0,0.2149355]
[1745946421275,0.3648332,94793.0,94792.0,0.004]
[1745946422580,0.3648332,94793.0,94792.0,0.01962454]
[1745946423574,0.3648332,94793.0,94792.0,0.2149355]
[1745946423874,0.3648332,94793.0,94792.0,0.004]
[1745946424282,0.001,94793.0,94792.0,0.5757355]
[1745946424578,0.15959124,94818.0,94817.0,0.2108799]
[1745946424782,0.10687174,94818.0,94817.0,0.2108799]
[1745946424964,0.10687174,94818.0,94817.0,0.3163439]
[1745946425364,0.31774934,94818.0,94817.0,0.3163439]
[1745946425570,0.31774934,94818.0,94817.0,0.33195564]
[1745946425882,0.11087174,94818.0,94817.0,0.33295564]
[1745946426375,0.32074934,94818.0,94817.0,0.01661374]
[1745946426578,0.47034934,94818.0,94817.0,0.22749364]
[1745946426771,0.47234934,94818.0,94817.0,0.2274182]
[1745946427575,0.46834934,94818.0,94817.0,0.2274182]
[1745946427878,0.46834934,94818.0,94817.0,0.0165383]
[1745946428385,0.3614776,94818.0,94817.0,0.0165383]
[1745946428568,0.3614776,94818.0,94817.0,0.001]
[1745946428974,0.3634776,94818.0,94817.0,0.001]
[1745946429581,0.3634776,94818.0,94817.0,0.0723]
[1745946429785,0.003,94818.0,94817.0,0.2831799]
[1745946430287,0.2138776,94818.0,94817.0,0.2831799]
[1745946430676,0.2138776,94818.0,94817.0,0.29890676]
[1745946431080,0.2138776,94818.0,94817.0,0.29890586]
[1745946431479,0.2138776,94818.0,94817.0,0.2831799]
[1745946431993,0.2128776,94818.0,94817.0,0.2831799]
[1745946432377,0.2118776,94818.0,94817.0,0.2831799]
[1745946432582,0.2128776,94818.0,94817.0,0.2831799]
[1745946432983,0.2118776,94818.0,94817.0,0.2831799]
[1745946433187,0.2128776,94818.0,94817.0,0.2831799]
[1745946433488,0.2118776,94818.0,94817.0,0.2831799]
[1745946433689,0.2118776,94818.0,94817.0,0.29975747]
[1745946433898,0.2118776,94818.0,94817.0,0.08887757]
[1745946434280,0.2108776,94818.0,94817.0,0.08787757]
[1745946434477,0.2118776,94818.0,94817.0,0.08887757]
[1745946434988,0.2118776,94818.0,94817.0,0.01657757]
[1745946435196,0.5716776,94818.0,94817.0,0.01657757]
[1745946435596,0.5716776,94818.0,94810.0,0.2108949]
[1745946435597,0.2108932,94811.0,94810.0,0.2108949]
[1745946436085,0.3608,94818.0,94803.0,0.02759467]
[1745946436286,0.3628,94818.0,94817.0,0.2108799]
[1745946436489,0.002,94818.0,94817.0,0.2108799]
[1745946436689,0.2108776,94818.0,94817.0,0.2108799]
[1745946437389,0.2108776,94818.0,94817.0,0.2118799]
[1745946437590,0.5716776,94818.0,94817.0,0.2118799]
[1745946437788,0.5716776,94818.0,94817.0,0.22760127]
[1745946438087,0.5716776,94818.0,94817.0,0.22660127]
[1745946438286,0.5726776,94818.0,94817.0,0.22860127]
[1745946438595,0.2118776,94818.0,94817.0,0.22860127]
[1745946438784,0.2128776,94818.0,94817.0,0.2118799]
[1745946438984,0.2128776,94818.0,94817.0,0.2108799]
[1745946439390,0.2118776,94818.0,94817.0,0.2108799]
[1745946439586,0.2128776,94818.0,94817.0,0.2108799]
[1745946440889,0.210891,94814.0,94813.0,0.210888]
[1745946441094,0.2108843,94816.0,94815.0,0.2108821]
[1745946441988,0.002,94818.0,94817.0,0.2108799]
[1745946442192,0.001,94818.0,94817.0,0.2108799]
[1745946442698,0.3608,94826.0,94825.0,0.2108621]
[1745946442894,0.3608,94826.0,94825.0,0.22635554]
[1745946443106,0.2108535,94829.0,94828.0,0.2108554]
[1745946443290,0.2108473,94834.0,94833.0,0.2108443]
[1745946443486,0.2123421,94835.0,94834.0,0.2108421]
[1745946443795,0.0015,94835.0,94834.0,0.2264174]
[1745946443989,0.2123398,94835.0,94834.0,0.2264174]
[1745946444595,0.0015,94835.0,94834.0,0.25425355]
[1745946445000,0.0035,94835.0,94834.0,0.25425355]
[1745946445188,0.0055,94835.0,94834.0,0.25525355]
[1745946445389,0.0035,94835.0,94834.0,0.25525355]
[1745946445793,0.0526995,94854.0,94834.0,0.14984941]
[1745946446097,0.31767464,94853.0,94852.0,0.210802]
[1745946446297,0.31767464,94853.0,94852.0,0.22636679]
[1745946446491,0.31767464,94853.0,94852.0,0.01556479]
[1745946446803,0.2108398,94835.0,94834.0,0.001]
[1745946447504,0.2108509,94830.0,94829.0,0.0692]
[1745946448293,0.2108509,94830.0,94829.0,0.07693529]
[1745946448491,0.2811509,94830.0,94829.0,0.07693529]
[1745946448900,0.2821509,94830.0,94829.0,0.07693529]
[1745946449291,0.2811509,94830.0,94829.0,0.07793529]
[1745946449493,0.2821509,94830.0,94829.0,0.07793529]
[1745946449893,0.2821509,94830.0,94829.0,0.00873529]
[1745946450800,0.2821509,94830.0,94829.0,0.00773529]
[1745946450991,0.001,94830.0,94829.0,0.2108532]
[1745946451196,0.001,94830.0,94826.0,0.0697]
[1745946451197,0.2848376,94836.0,94835.0,0.2108398]
[1745946451694,0.6456376,94836.0,94835.0,0.22643272]
[1745946452401,0.6456376,94836.0,94835.0,0.36673272]
[1745946452596,0.4348,94836.0,94835.0,0.36673272]
[1745946452791,0.6456376,94836.0,94835.0,0.36673272]
[1745946452998,0.4348,94836.0,94835.0,0.36673272]
[1745946453194,0.3608,94836.0,94835.0,0.36673272]
[1745946453595,0.002,94836.0,94835.0,0.36773272]
[1745946453794,0.002,94836.0,94835.0,0.72853272]
[1745946453995,0.005,94836.0,94835.0,0.72853272]
[1745946454502,0.001,94836.0,94835.0,0.73053272]
[1745946454699,0.001,94836.0,94835.0,0.73283282]
[1745946454898,0.001,94836.0,94835.0,0.73280682]
[1745946455200,0.001,94836.0,94835.0,0.62841102]
[1745946455398,0.001,94836.0,94835.0,0.83925082]
[1745946456192,0.4144,94854.0,94853.0,0.2107998]
[1745946456411,0.3608,94856.0,94855.0,0.2107954]
[1745946456607,0.3608,94856.0,94855.0,0.22666242]
[1745946456906,0.3608,94856.0,94855.0,0.22669681]
[1745946457100,0.3608,94856.0,94855.0,0.29679681]
[1745946457305,0.5715932,94856.0,94855.0,0.29679681]
[1745946457700,0.5725932,94856.0,94855.0,0.29679681]
[1745946457900,0.5755932,94856.0,94855.0,0.2808954]
[1745946458509,0.5735932,94856.0,94855.0,0.2808954]
[1745946459010,0.5735932,94856.0,94855.0,0.29639042]
[1745946459807,0.5735932,94856.0,94855.0,0.2808954]
[1745946460504,0.5725932,94856.0,94855.0,0.2818954]
[1745946460896,0.5725932,94856.0,94855.0,0.29738335]
[1745946461810,0.5725932,94856.0,94855.0,0.2818954]
[1745946462099,0.5715932,94856.0,94855.0,0.0711]
[1745946462307,0.5725932,94856.0,94855.0,0.0711]
[1745946462805,0.5725932,94856.0,94855.0,0.08661634]
[1745946463308,0.5725932,94856.0,94855.0,0.08661635]
[1745946463705,0.5725932,94856.0,94855.0,0.01551635]
[1745946463706,0.5715932,94856.0,94855.0,0.01551635]
[1745946464008,0.2108176,94845.0,94844.0,0.2827182]
[1745946464210,0.2108135,94847.0,94846.0,0.2108132]
[1745946464418,0.2108097,94849.0,94848.0,0.2635087]
[1745946464600,0.2108097,94849.0,94848.0,0.2108065]
[1745946466305,0.1438,94850.0,94846.0,0.0547033]
[1745946466505,0.2108132,94847.0,94846.0,0.2128134]
[1745946466901,0.3546132,94847.0,94846.0,0.2108134]
[1745946467702,0.07,94850.0,94849.0,0.2108087]
[1745946468010,0.2808065,94850.0,94849.0,0.22660413]
[1745946470106,0.2808065,94850.0,94849.0,0.22674549]
[1745946470306,0.2808065,94850.0,94849.0,0.22774549]
[1745946470612,0.071,94850.0,94849.0,0.22774549]
[1745946470814,0.2818065,94850.0,94849.0,0.22774549]
[1745946471007,0.4317065,94850.0,94849.0,0.22774549]
[1745946473516,0.2209,94850.0,94849.0,0.22774549]
[1745946473811,0.4317065,94850.0,94849.0,0.22774549]
[1745946474015,0.4317065,94850.0,94849.0,0.22801267]
[1745946476713,0.2209,94850.0,94849.0,0.22801267]
[1745946477112,0.4317065,94850.0,94849.0,0.22801267]
[1745946477721,0.4317065,94850.0,94849.0,0.22828078]
[1745946477912,0.4317065,94850.0,94849.0,0.29698078]
[1745946478522,0.071,94850.0,94849.0,0.29698078]
[1745946480024,0.2818065,94850.0,94849.0,0.29698078]
[1745946482226,0.001,94850.0,94849.0,0.29698078]
[1745946482427,0.001,94850.0,94849.0,0.36328078]
[1745946484820,0.001,94850.0,94849.0,0.36328025]
[1745946485226,0.001,94850.0,94849.0,0.36328054]
[1745946485430,0.001,94850.0,94849.0,0.36328056]
[1745946486532,0.001,94850.0,94849.0,0.36309724]
[1745946488441,0.001,94850.0,94849.0,0.36301459]
[1745946488943,0.001,94850.0,94849.0,0.29671459]
[1745946490242,0.3608,94856.0,94855.0,0.2107954]
[1745946490442,0.3608,94856.0,94855.0,0.22700129]
[1745946490936,0.3608,94856.0,94855.0,0.01620589]
[1745946490937,0.5715932,94856.0,94855.0,0.01620589]
[1745946491139,0.5715932,94856.0,94855.0,0.29460129]
[1745946491643,0.7088932,94856.0,94855.0,0.29460129]
[1745946492444,0.3638,94856.0,94855.0,0.29460129]
[1745946493230,0.44082452,94869.0,94865.0,0.2107732]
[1745946493441,0.44082452,94869.0,94865.0,0.22697909]
[1745946494545,0.3608,94869.0,94865.0,0.22697909]
[1745946494746,0.004,94866.0,94865.0,0.22697909]
[1745946495246,0.003,94866.0,94865.0,0.22697909]
[1745946495547,0.006,94866.0,94865.0,0.22797909]
[1745946495755,0.006,94866.0,94865.0,0.22821392]
[1745946496053,0.003,94866.0,94865.0,0.22721392]
[1745946496353,0.004,94866.0,94865.0,0.22721392]
[1745946502449,0.2147709,94866.0,94865.0,0.01644072]
[1745946502656,0.2147709,94866.0,94865.0,0.22721392]
[1745946502856,0.2147709,94866.0,94865.0,0.01644072]
[1745946503258,0.2107732,94865.0,94864.0,0.2107753]
[1745946503458,0.3396732,94865.0,94864.0,0.22683385]
[1745946504249,0.3406732,94865.0,94864.0,0.22683431]
[1745946505149,0.1299,94865.0,94864.0,0.22683431]
[1745946505459,0.3416732,94865.0,94864.0,0.22683502]
[1745946506261,0.3416732,94865.0,94864.0,0.22683642]
[1745946507251,0.3416732,94865.0,94864.0,0.22683756]
[1745946507855,0.7024732,94865.0,94864.0,0.01606226]
[1745946517368,0.3628,94865.0,94864.0,0.22683766]
[1745946517967,0.5735732,94865.0,94864.0,0.22683766]
[1745946518164,0.5735732,94865.0,94864.0,0.30153766]
[1745946518464,0.3628,94865.0,94864.0,0.30153766]
[1745946519862,0.002,94865.0,94864.0,0.30153766]
[1745946520864,0.002,94865.0,94864.0,0.30159107]
[1745946523456,0.0015,94870.0,94869.0,0.2107643]
[1745946523664,0.3608,94874.0,94873.0,0.2107554]
[1745946523956,0.3608,94874.0,94873.0,0.22687107]
[1745946525160,0.3608,94874.0,94873.0,0.37767107]
[1745946525473,0.3668,94874.0,94873.0,0.37867107]
[1745946525975,0.08002452,94889.0,94888.0,0.2107221]
[1745946526158,0.10787174,94896.0,94895.0,0.2107065]
[1745946526359,0.1,94900.0,94899.0,0.2106976]
[1745946526555,0.1,94900.0,94899.0,0.22681327]
[1745946527463,0.1,94900.0,94899.0,0.2106976]
[1745946527661,0.0015,94905.0,94904.0,0.2106865]
[1745946527857,0.0015,94905.0,94904.0,0.58778783]
[1745946528462,0.212173,94916.0,94915.0,0.2106621]
[1745946528463,0.1595078,94916.0,94915.0,0.2106621]
[1745946528659,0.1595078,94916.0,94915.0,0.22696343]
[1745946528866,0.1595078,94916.0,94915.0,0.25118659]
[1745946529061,0.3701677,94916.0,94915.0,0.04052449]
[1745946529258,0.3701677,94916.0,94915.0,0.16510133]
[1745946529664,0.3761677,94916.0,94915.0,0.16610133]
[1745946529865,0.5237677,94916.0,94915.0,0.16610133]
[1745946530364,0.3642599,94916.0,94915.0,0.16610133]
[1745946530561,0.3692599,94916.0,94915.0,0.16610133]
[1745946533862,0.3692599,94916.0,94915.0,0.37676343]
[1745946534062,0.2216599,94916.0,94915.0,0.37676343]
[1745946535865,0.3685599,94916.0,94915.0,0.37676343]
[1745946536465,0.2949599,94916.0,94915.0,0.37676343]
[1745946536665,0.011,94916.0,94915.0,0.37676343]
[1745946537970,0.011,94916.0,94915.0,0.73756343]
[1745946539267,0.2216599,94916.0,94915.0,0.73756343]
[1745946540766,0.011,94916.0,94915.0,0.73756343]
[1745946540970,0.2216599,94916.0,94915.0,0.73713781]
[1745946541877,0.05266,94925.0,94915.0,0.73713781]
[1745946541878,0.3608,94946.0,94939.0,0.2106089]
[1745946542171,0.2105771,94955.0,94954.0,0.2105734]
[1745946542378,0.3561734,94955.0,94954.0,0.2105734]
[1745946542577,0.3561734,94955.0,94954.0,0.22635033]
[1745946542769,0.3561734,94955.0,94954.0,0.2105734]
[1745946543072,0.3561734,94955.0,94954.0,0.21844824]
[1745946543663,0.3561734,94955.0,94954.0,0.30496734]
[1745946543967,0.3561734,94955.0,94954.0,0.28904824]
[1745946544166,0.3561734,94955.0,94954.0,0.30496732]
[1745946544568,0.3601734,94955.0,94954.0,0.30496732]
[1745946545269,0.3641734,94955.0,94954.0,0.30496732]
[1745946546268,0.2185734,94955.0,94954.0,0.30496732]
[1745946546977,0.5793734,94955.0,94954.0,0.02379392]
[1745946547166,0.6517734,94955.0,94954.0,0.02379392]
[1745946547566,0.6517734,94955.0,94954.0,0.02402525]
[1745946547975,0.2106111,94938.0,94937.0,0.3608]
[1745946548174,0.2106111,94938.0,94937.0,0.37695086]
[1745946548966,0.3562111,94938.0,94937.0,0.37695086]
[1745946549174,0.3562111,94938.0,94937.0,0.58756416]
[1745946549473,0.3562111,94938.0,94937.0,0.37795086]
[1745946549672,0.2632616,94941.0,94940.0,0.2632534]
[1745946549871,0.2632616,94941.0,94940.0,0.27915279]
[1745946550272,0.3384616,94941.0,94940.0,0.27915279]
[1745946550477,0.4141616,94941.0,94940.0,0.27915279]
[1745946550672,0.4141616,94941.0,94940.0,0.22650159]
[1745946550874,0.4141616,94941.0,94940.0,0.01589939]
[1745946551273,0.4151616,94941.0,94940.0,0.01589939]
[1745946551678,0.4161616,94941.0,94940.0,0.22627384]
[1745946552485,0.4161616,94941.0,94940.0,0.01566724]
[1745946553175,0.4161616,94941.0,94940.0,0.22627384]
[1745946553376,0.4161616,94941.0,94940.0,0.01566724]
[1745946555979,0.5214896,94941.0,94940.0,0.01566724]
[1745946556183,0.8914896,94941.0,94940.0,1e-08]
[1745946557081,0.6414896,94941.0,94940.0,1e-08]
[1745946557879,0.052658,94929.0,94922.0,0.00158024]
[1745946558080,0.2106421,94924.0,94923.0,0.0724]
[1745946558282,0.2106421,94924.0,94923.0,0.08046077]
[1745946558483,0.3509421,94924.0,94923.0,0.08046077]
[1745946558982,0.3509421,94924.0,94923.0,0.29110517]
[1745946559180,0.3509421,94924.0,94923.0,0.08046077]
[1745946560272,0.3509421,94924.0,94923.0,0.08246077]
[1745946560477,0.3509421,94924.0,94923.0,0.08546077]
[1745946561081,0.3509421,94924.0,94923.0,0.08246077]
[1745946561578,0.3509421,94924.0,94923.0,0.29310517]
[1745946561776,0.3509421,94924.0,94923.0,0.29210517]
[1745946562084,0.2106394,94926.0,94925.0,0.2106399]
[1745946562675,0.2106421,94924.0,94923.0,0.15476077]
[1745946562880,0.2106421,94924.0,94923.0,0.36540517]
[1745946563283,0.2106421,94924.0,94923.0,0.36440517]
[1745946563483,0.2106421,94924.0,94923.0,0.36540517]
[1745946566981,0.2106421,94924.0,94923.0,0.15476077]
[1745946567299,0.0526588,94927.0,94923.0,0.15476077]
[1745946567300,0.2106399,94925.0,94924.0,0.2106421]
[1745946567497,0.2106399,94925.0,94924.0,0.3586421]
[1745946569290,0.2106399,94925.0,94924.0,0.149]
[1745946569491,0.2106399,94925.0,94924.0,0.0754]
[1745946569997,0.2106399,94925.0,94924.0,0.30350209]
[1745946570294,0.3516399,94925.0,94924.0,0.30350209]
[1745946570494,0.2106399,94925.0,94924.0,0.37610209]
[1745946570699,0.2106354,94930.0,94929.0,0.2632838]
[1745946570883,0.2106354,94930.0,94929.0,0.27953833]
[1745946571289,0.2106354,94930.0,94929.0,0.42133833]
[1745946571590,0.2632669,94937.0,94936.0,0.2106133]
[1745946571788,0.2632669,94937.0,94936.0,0.01625453]
[1745946572192,0.2632669,94937.0,94936.0,0.16145453]
[1745946572385,0.2632669,94937.0,94936.0,0.37207003]
[1745946573586,0.2652669,94937.0,94936.0,0.37207003]
[1745946575592,0.2632669,94937.0,94936.0,0.37207003]
[1745946576498,0.2632669,94937.0,94936.0,0.37199954]
[1745946576994,0.6240669,94937.0,94936.0,0.01618404]
[1745946577397,0.87149891,94937.0,94936.0,0.01618404]
[1745946578500,0.2106266,94931.0,94930.0,0.2106285]
[1745946578692,0.2106266,94931.0,94930.0,0.22679777]
[1745946579097,0.2106266,94931.0,94930.0,0.29579777]
[1745946579297,0.2862266,94931.0,94930.0,0.29579777]
[1745946580193,0.2862266,94931.0,94930.0,0.29679777]
[1745946580394,0.2862266,94931.0,94930.0,0.29681463]
[1745946581691,0.2862266,94931.0,94930.0,0.08618613]